[Event "XI Paracin Festival 2018"]
[Site "Paracin"]
[Date "2018.07.07"]
[Round "3"]
[White "Georgiev, Kiril"]
[Black "Gukesh, D."]
[Result "1/2-1/2"]
[ECO "A11"]
[WhiteElo "2590"]
[BlackElo "2433"]
[Annotator "ChessBase"]
[PlyCount "115"]
[EventDate "2018.07.06"]
[EventType "swiss"]
[EventCountry "SRB"]
[SourceTitle "playchess.com"]
[Source "ChessBase"]
[SourceQuality "1"]
[TimeControl "5400+30"]

1. c4 {[%emt 0:02:21]} c6 {[%emt 0:00:22]} 2. Nf3 {[%emt 0:04:04]} d5 {[%emt 0:01:31]} 3. e3 {[%emt 0:00:11]} Nf6 {[%emt 0:00:13]} 4. Nc3 {[%emt 0:00:10]} e6 {[%emt 0:01:55]} 5. b3 {[%emt 0:01:07]} Nbd7 {[%emt 0:01:20]} 6. Bb2 {[%emt 0:00:16]} Bd6 {[%emt 0:00:21]} 7. Qc2 {[%emt 0:00:16]} O-O {[%emt 0:03:51]} 8. Be2 {[%emt 0:00:20]} Qe7 {[%emt 0:03:11]} 9. O-O {[%emt 0:01:29]} b6 {[%emt 0:07:29]} 10. cxd5 {[%emt 0:01:34]} cxd5 {[%emt 0:02:02]} 11. Nb5 {[%emt 0:01:32]} Bb7 {[%emt 0:05:41]} 12. Rfc1 {[%emt 0:09:31]} Rfc8 {[%emt 0:04:12]} 13. Qd1 {[%emt 0:00:15]} a6 {[%emt 0:03:02]} 14. Nxd6 {[%emt 0:01:01]} Qxd6 {[%emt 0:00:10]} 15. Rxc8+ {[%emt 0:03:28]} Rxc8 {[%emt 0:00:08]} 16. Rc1 {[%emt 0:00:06]} Rxc1 {[%emt 0:06:18]} 17. Qxc1 {[%emt 0:00:17]} Qc5 {[%emt 0:02:25]} 18. Qb1 {[%emt 0:04:40]} Ne4 {[%emt 0:01:15]} 19. Qa1 {[%emt 0:00:45]} f6 {[%emt 0:02:27]} 20. d3 {[%emt 0:01:07]} Nd6 {[%emt 0:02:13]} 21. Qd1 {[%emt 0:01:06]} b5 {[%emt 0:05:44]} 22. Nd4 {[%emt 0:00:41]} e5 {[%emt 0:07:58]} 23. Ne6 {[%emt 0:09:06]} Qb6 {[%emt 0:01:36]} 24. Bg4 {[%emt 0:07:27]} g6 {[%emt 0:09:40]} 25. Ng5 {[%emt 0:11:39]} Nf8 {[%emt 0:01:11]} 26. Nh3 {[%emt 0:03:05]} h5 {[%emt 0:03:11]} 27. Be2 {[%emt 0:00:09]} Ne6 {[%emt 0:01:44]} 28. d4 {[%emt 0:03:33]} e4 {[%emt 0:01:02]} 29. Qc1 {[%emt 0:03:37]} Qc6 {[%emt 0:02:37]} 30. Qxc6 {[%emt 0:02:22]} Bxc6 {[%emt 0:00:02]} 31. Ba3 {[%emt 0:00:08]} Nb7 {[%emt 0:00:30]} 32. f3 {[%emt 0:00:49]} f5 {[%emt 0:01:46]} 33. Be7 {[%emt 0:02:00]} Kf7 {[%emt 0:00:31]} 34. Bh4 {[%emt 0:00:02]} a5 {[%emt 0:02:36]} 35. Kf2 {[%emt 0:03:19]} b4 {[%emt 0:03:56]} 36. Ng5+ {[%emt 0:05:36]} Nxg5 {[%emt 0:00:15]} 37. Bxg5 {[%emt 0:00:07]} a4 {[%emt 0:00:57]} 38. Ke1 {[%emt 0:00:36]} Na5 {[%emt 0:04:16]} 39. Bd1 {[%emt 0:01:56]} Nxb3 {[%emt 0:00:37]} 40. Bxb3 {[%emt 0:02:51]} axb3 {[%emt 0:00:02]} 41. axb3 {[%emt 0:00:07]} Ke8 {[%emt 0:04:54]} 42. Kd1 {[%emt 0:05:11]} Bb5 {[%emt 0:00:52]} 43. f4 {[%emt 0:01:32]} Bf1 {[%emt 0:00:44]} 44. Bh4 {[%emt 0:00:06]} Bxg2 {[%emt 0:00:44]} 45. Be1 {[%emt 0:00:05]} Bf1 {[%emt 0:02:14]} 46. Bxb4 {[%emt 0:00:04]} Kd7 {[%emt 0:00:05]} 47. Kd2 {[%emt 0:00:22]} Bd3 {[%emt 0:00:11]} 48. Kc3 {[%emt 0:00:25]} Kc6 {[%emt 0:00:17]} 49. Be7 {[%emt 0:00:12]} Bf1 {[%emt 0:00:06]} 50. Kd2 {[%emt 0:00:33]} Bd3 {[%emt 0:00:12]} 51. Ke1 {[%emt 0:00:29]} Kd7 {[%emt 0:00:17]} 52. Bc5 {[%emt 0:01:12]} Bc2 {[%emt 0:00:14]} 53. b4 {[%emt 0:00:02]} Bd3 {[%emt 0:00:04]} 54. Kf2 {[%emt 0:00:09]} Ke6 {[%emt 0:00:05]} 55. Kg3 {[%emt 0:00:05]} Bc4 {[%emt 0:00:04]} 56. Kh4 {[%emt 0:00:07]} Kf7 {[%emt 0:00:02]} 57. Kg5 {[%emt 0:00:10]} Bd3 {[%emt 0:00:06]} 58. Bb6 {[%emt 0:01:02]} 1/2-1/2

[Event "XI Paracin Festival 2018"]
[Site "Paracin"]
[Date "2018.07.07"]
[Round "3"]
[White "Savic, Miodrag R"]
[Black "Ozen, Bahadir"]
[Result "1-0"]
[ECO "B06"]
[WhiteElo "2545"]
[BlackElo "2317"]
[Annotator "ChessBase"]
[PlyCount "78"]
[EventDate "2018.07.06"]
[EventType "swiss"]
[EventCountry "SRB"]
[SourceTitle "playchess.com"]
[Source "ChessBase"]
[SourceQuality "1"]
[TimeControl "5400+30"]

1. e4 {[%emt 0:00:00]} g6 {[%emt 0:00:00]} 2. d4 {[%emt 0:00:00]} Bg7 {[%emt 0:00:05]} 3. Nc3 {[%emt 0:00:10]} d6 {[%emt 0:00:20]} 4. h3 {[%emt 0:00:53]} a6 {[%emt 0:01:44]} 5. a4 {[%emt 0:01:11]} Nc6 {[%emt 0:08:24]} 6. d5 {[%emt 0:07:44]} Nb4 {[%emt 0:01:36]} 7. a5 {[%emt 0:04:26]} e6 {[%emt 0:00:43]} 8. Ra4 {[%emt 0:15:21]} c5 {[%emt 0:01:01]} 9. dxc6 {[%emt 0:03:51]} Nxc6 {[%emt 0:00:25]} 10. Bf4 {[%emt 0:00:36]} Bxc3+ {[%emt 0:02:13]} 11. bxc3 {[%emt 0:00:18]} Ke7 {[%emt 0:00:14]} 12. Nf3 {[%emt 0:02:53]} e5 {[%emt 0:01:36]} 13. Be3 {[%emt 0:04:18]} Be6 {[%emt 0:04:52]} 14. Qb1 {[%emt 0:06:31]} Qd7 {[%emt 0:06:03]} 15. Be2 {[%emt 0:01:27]} f5 {[%emt 0:09:45]} 16. Ng5 {[%emt 0:06:59]} Nf6 {[%emt 0:03:03]} 17. Nxe6 {[%emt 0:03:34]} Kxe6 {[%emt 0:00:13]} 18. O-O {[%emt 0:01:24]} f4 {[%emt 0:07:22]} 19. Bc1 {[%emt 0:00:10]} g5 {[%emt 0:00:18]} 20. Rd1 {[%emt 0:00:36]} Qc7 {[%emt 0:02:18]} 21. Ba3 {[%emt 0:03:20]} Rad8 {[%emt 0:00:19]} 22. Bc4+ {[%emt 0:03:51]} Ke7 {[%emt 0:00:25]} 23. Ba2 {[%emt 0:00:15]} Rhe8 {[%emt 0:02:55]} 24. Qb3 {[%emt 0:02:25]} Kf8 {[%emt 0:04:06]} 25. Bxd6+ {[%emt 0:01:40]} Rxd6 {[%emt 0:00:03]} 26. Rxd6 {[%emt 0:00:03]} Kg7 {[%emt 0:00:05]} 27. Rd3 {[%emt 0:03:11]} Re7 {[%emt 0:00:28]} 28. Qa3 {[%emt 0:01:58]} h5 {[%emt 0:00:18]} 29. Bd5 {[%emt 0:01:10]} g4 {[%emt 0:02:07]} 30. hxg4 {[%emt 0:01:37]} hxg4 {[%emt 0:00:01]} 31. Qc5 {[%emt 0:04:05]} Nd7 {[%emt 0:00:39]} 32. Qa3 {[%emt 0:00:36]} Nf6 {[%emt 0:00:39]} 33. Rc4 {[%emt 0:00:35]} Rf7 {[%emt 0:03:33]} 34. Bxf7 {[%emt 0:03:29]} Qxf7 {[%emt 0:00:02]} 35. Rxc6 {[%emt 0:00:19]} bxc6 {[%emt 0:00:01]} 36. Qd6 {[%emt 0:00:49]} g3 {[%emt 0:12:53]} 37. Qxe5 {[%emt 0:01:32]} gxf2+ {[%emt 0:00:24]} 38. Kxf2 {[%emt 0:00:24]} Qa7+ {[%emt 0:00:16]} 39. Kf3 {[%emt 0:02:19]} Qf2+ {[%emt 0:00:20]} 1-0

[Event "XI Paracin Festival 2018"]
[Site "Paracin"]
[Date "2018.07.07"]
[Round "3"]
[White "Kadric, Denis"]
[Black "Djordjevic, Vuk"]
[Result "1-0"]
[ECO "B01"]
[WhiteElo "2509"]
[BlackElo "2403"]
[Annotator "ChessBase"]
[PlyCount "109"]
[EventDate "2018.07.06"]
[EventType "swiss"]
[EventCountry "SRB"]
[SourceTitle "playchess.com"]
[Source "ChessBase"]
[SourceQuality "1"]
[TimeControl "5400+30"]

1. e4 {[%emt 0:00:48]} d5 {[%emt 0:00:00]} 2. exd5 {[%emt 0:00:03]} Qxd5 {[%emt 0:00:00]} 3. Nf3 {[%emt 0:00:02]} Bg4 {[%emt 0:00:07]} 4. Be2 {[%emt 0:00:01]} Nc6 {[%emt 0:00:11]} 5. h3 {[%emt 0:00:01]} Bxf3 {[%emt 0:00:15]} 6. Bxf3 {[%emt 0:00:01]} Qe6+ {[%emt 0:00:07]} 7. Qe2 {[%emt 0:00:02]} Qxe2+ {[%emt 0:00:15]} 8. Bxe2 {[%emt 0:00:01]} O-O-O {[%emt 0:00:51]} 9. c3 {[%emt 0:00:02]} e5 {[%emt 0:00:16]} 10. d3 {[%emt 0:00:01]} g6 {[%emt 0:00:11]} 11. Nd2 {[%emt 0:00:03]} Bh6 {[%emt 0:04:14]} 12. Kd1 {[%emt 0:00:13]} Nge7 {[%emt 0:05:27]} 13. Kc2 {[%emt 0:00:44]} Nd5 {[%emt 0:02:23]} 14. Re1 {[%emt 0:00:16]} f6 {[%emt 0:10:16]} 15. Bf1 {[%emt 0:02:06]} Nce7 {[%emt 0:11:51]} 16. g3 {[%emt 0:01:27]} Nf5 {[%emt 0:01:08]} 17. h4 {[%emt 0:05:15]} c6 {[%emt 0:04:47]} 18. a4 {[%emt 0:00:06]} Rhe8 {[%emt 0:02:21]} 19. a5 {[%emt 0:12:17]} Nd6 {[%emt 0:03:42]} 20. Bg2 {[%emt 0:04:45]} Kc7 {[%emt 0:02:08]} 21. h5 {[%emt 0:16:27]} Re7 {[%emt 0:11:45]} 22. Ra4 {[%emt 0:01:53]} f5 {[%emt 0:01:17]} 23. Rh1 {[%emt 0:04:17]} Nf7 {[%emt 0:05:15]} 24. hxg6 {[%emt 0:03:20]} hxg6 {[%emt 0:00:08]} 25. Rah4 {[%emt 0:01:29]} Bg5 {[%emt 0:01:34]} 26. Rh7 {[%emt 0:02:03]} Nf6 {[%emt 0:01:51]} 27. Rg7 {[%emt 0:01:22]} Ng4 {[%emt 0:02:12]} 28. Rhh7 {[%emt 0:03:30]} Nf6 {[%emt 0:03:12]} 29. Nf3 {[%emt 0:01:46]} Nxh7 {[%emt 0:01:32]} 30. Nxg5 {[%emt 0:00:09]} Nhxg5 {[%emt 0:03:16]} 31. Bxg5 {[%emt 0:00:04]} Kd7 {[%emt 0:01:02]} 32. Bxe7 {[%emt 0:00:48]} Kxe7 {[%emt 0:00:01]} 33. Rxg6 {[%emt 0:00:04]} a6 {[%emt 0:00:20]} 34. Bh3 {[%emt 0:01:12]} Nd6 {[%emt 0:00:49]} 35. Rh6 {[%emt 0:01:30]} Rf8 {[%emt 0:03:41]} 36. Kb3 {[%emt 0:02:34]} c5 {[%emt 0:00:51]} 37. Kc2 {[%emt 0:04:45]} Rf7 {[%emt 0:02:48]} 38. Kd2 {[%emt 0:02:28]} Rg7 {[%emt 0:03:32]} 39. Ke3 {[%emt 0:00:03]} Rg5 {[%emt 0:01:45]} 40. Rh7+ {[%emt 0:03:45]} Kd8 {[%emt 0:00:19]} 41. Bf1 {[%emt 0:02:22]} Rg4 {[%emt 0:01:54]} 42. Bg2 {[%emt 0:02:38]} f4+ {[%emt 0:04:09]} 43. Kf3 {[%emt 0:00:30]} Rg6 {[%emt 0:00:00]} 44. gxf4 {[%emt 0:02:06]} Rf6 {[%emt 0:01:12]} 45. Bh3 {[%emt 0:01:15]} Rxf4+ {[%emt 0:00:20]} 46. Ke3 {[%emt 0:00:02]} Nf7 {[%emt 0:01:48]} 47. Bg2 {[%emt 0:01:50]} Kc8 {[%emt 0:00:18]} 48. Bd5 {[%emt 0:00:43]} Nd6 {[%emt 0:00:30]} 49. Be6+ {[%emt 0:00:56]} Kb8 {[%emt 0:00:05]} 50. Rd7 {[%emt 0:00:28]} Nb5 {[%emt 0:00:23]} 51. Bc4 {[%emt 0:02:08]} Nc7 {[%emt 0:00:41]} 52. Rd8+ {[%emt 0:00:12]} Ka7 {[%emt 0:00:03]} 53. Rc8 {[%emt 0:00:04]} Na8 {[%emt 0:00:40]} 54. Rxc5 {[%emt 0:00:41]} Rf5 {[%emt 0:00:04]} 55. b4 {[%emt 0:00:41]} 1-0

[Event "XI Paracin Festival 2018"]
[Site "Paracin"]
[Date "2018.07.07"]
[Round "3"]
[White "Damljanovic, Branko"]
[Black "Peng, Shunkai"]
[Result "1/2-1/2"]
[ECO "A06"]
[WhiteElo "2499"]
[BlackElo "2390"]
[Annotator "ChessBase"]
[PlyCount "139"]
[EventDate "2018.07.06"]
[EventType "swiss"]
[EventCountry "SRB"]
[SourceTitle "playchess.com"]
[Source "ChessBase"]
[SourceQuality "1"]
[TimeControl "5400+30"]

1. Nf3 {[%emt 0:00:05]} d5 {[%emt 0:01:13]} 2. g3 {[%emt 0:00:08]} Nf6 {[%emt 0:02:57]} 3. Bg2 {[%emt 0:00:06]} e6 {[%emt 0:02:00]} 4. O-O {[%emt 0:00:09]} Be7 {[%emt 0:00:10]} 5. c4 {[%emt 0:01:05]} d4 {[%emt 0:03:58]} 6. e3 {[%emt 0:05:18]} c5 {[%emt 0:00:40]} 7. exd4 {[%emt 0:00:30]} cxd4 {[%emt 0:00:10]} 8. d3 {[%emt 0:02:22]} Nc6 {[%emt 0:00:24]} 9. Re1 {[%emt 0:00:41]} O-O {[%emt 0:01:32]} 10. Na3 {[%emt 0:04:18]} Re8 {[%emt 0:13:47]} 11. Nc2 {[%emt 0:02:24]} Bf8 {[%emt 0:03:08]} 12. a3 {[%emt 0:03:54]} a5 {[%emt 0:01:25]} 13. Bg5 {[%emt 0:06:36]} h6 {[%emt 0:10:40]} 14. Bxf6 {[%emt 0:01:26]} Qxf6 {[%emt 0:00:20]} 15. Qd2 {[%emt 0:02:32]} a4 {[%emt 0:05:14]} 16. Re4 {[%emt 0:00:46]} Bc5 {[%emt 0:02:38]} 17. Rae1 {[%emt 0:00:20]} Bd7 {[%emt 0:06:52]} 18. Ne5 {[%emt 0:03:57]} Nxe5 {[%emt 0:01:29]} 19. Rxe5 {[%emt 0:00:01]} Qe7 {[%emt 0:01:09]} 20. Nb4 {[%emt 0:04:52]} Qd6 {[%emt 0:03:33]} 21. Bxb7 {[%emt 0:02:50]} Ra7 {[%emt 0:05:17]} 22. Na6 {[%emt 0:18:12]} f6 {[%emt 0:09:36]} 23. Rh5 {[%emt 0:08:03]} e5 {[%emt 0:05:55]} 24. Nxc5 {[%emt 0:02:17]} Qxc5 {[%emt 0:00:03]} 25. Bd5+ {[%emt 0:00:56]} Be6 {[%emt 0:00:37]} 26. Bxe6+ {[%emt 0:01:41]} Rxe6 {[%emt 0:00:01]} 27. f4 {[%emt 0:00:10]} Rae7 {[%emt 0:01:48]} 28. fxe5 {[%emt 0:00:15]} fxe5 {[%emt 0:00:56]} 29. Qg2 {[%emt 0:01:07]} Qb6 {[%emt 0:01:32]} 30. Qd5 {[%emt 0:03:52]} Kh8 {[%emt 0:00:42]} 31. Rf5 {[%emt 0:08:42]} Re8 {[%emt 0:01:25]} 32. Ref1 {[%emt 0:00:56]} Kh7 {[%emt 0:00:25]} 33. Rf8 {[%emt 0:05:02]} Rxf8 {[%emt 0:01:27]} 34. Rxf8 {[%emt 0:01:07]} Qc6 {[%emt 0:00:01]} 35. Qxc6 {[%emt 0:00:53]} Rxc6 {[%emt 0:00:02]} 36. Re8 {[%emt 0:00:13]} Rb6 {[%emt 0:00:15]} 37. Rxe5 {[%emt 0:00:03]} Rxb2 {[%emt 0:01:08]} 38. Rd5 {[%emt 0:00:07]} Ra2 {[%emt 0:00:13]} 39. Rxd4 {[%emt 0:00:02]} Rxa3 {[%emt 0:00:06]} 40. Kf2 {[%emt 0:01:40]} Ra2+ {[%emt 0:01:22]} 41. Ke3 {[%emt 0:00:03]} Rxh2 {[%emt 0:01:05]} 42. Rd6 {[%emt 0:00:37]} Rg2 {[%emt 0:04:00]} 43. Kf3 {[%emt 0:00:55]} Rd2 {[%emt 0:00:43]} 44. c5 {[%emt 0:00:07]} a3 {[%emt 0:01:42]} 45. Ke3 {[%emt 0:00:09]} Rc2 {[%emt 0:01:01]} 46. d4 {[%emt 0:00:25]} Rc3+ {[%emt 0:00:57]} 47. Kd2 {[%emt 0:01:51]} Rc4 {[%emt 0:01:52]} 48. Ra6 {[%emt 0:03:07]} Rxd4+ {[%emt 0:00:05]} 49. Kc3 {[%emt 0:00:03]} Rd1 {[%emt 0:02:47]} 50. Rxa3 {[%emt 0:00:18]} Kg6 {[%emt 0:00:24]} 51. Kc4 {[%emt 0:03:11]} Kf5 {[%emt 0:00:39]} 52. c6 {[%emt 0:02:25]} Rc1+ {[%emt 0:03:14]} 53. Kd5 {[%emt 0:00:10]} Kg4 {[%emt 0:01:11]} 54. Kd6 {[%emt 0:01:33]} g5 {[%emt 0:00:26]} 55. c7 {[%emt 0:00:09]} h5 {[%emt 0:00:09]} 56. Ra5 {[%emt 0:00:02]} Rxc7 {[%emt 0:00:25]} 57. Kxc7 {[%emt 0:00:01]} h4 {[%emt 0:00:16]} 58. gxh4 {[%emt 0:00:02]} gxh4 {[%emt 0:00:12]} 59. Kd6 {[%emt 0:00:02]} h3 {[%emt 0:00:08]} 60. Ke5 {[%emt 0:00:15]} h2 {[%emt 0:00:16]} 61. Ra1 {[%emt 0:00:18]} Kg3 {[%emt 0:00:21]} 62. Kf5 {[%emt 0:01:32]} Kg2 {[%emt 0:00:25]} 63. Ra2+ {[%emt 0:00:26]} Kg3 {[%emt 0:00:38]} 64. Ra1 {[%emt 0:00:05]} Kg2 {[%emt 0:00:02]} 65. Kg4 {[%emt 0:00:07]} h1=Q {[%emt 0:00:14]} 66. Ra2+ {[%emt 0:00:04]} Kf1 {[%emt 0:00:19]} 67. Ra1+ Kg2 68. Ra2+ {[%emt 0:00:08]} Kf1 {[%emt 0:00:05]} 69. Ra1+ {[%emt 0:00:03]} Kg2 {[%emt 0:00:07]} 70. Ra2+ {[%emt 0:00:00]} 1/2-1/2

[Event "XI Paracin Festival 2018"]
[Site "Paracin"]
[Date "2018.07.07"]
[Round "3"]
[White "Yilmazyerli, Mert"]
[Black "Dimitrov, Vladimir"]
[Result "1/2-1/2"]
[ECO "E15"]
[WhiteElo "2491"]
[BlackElo "2308"]
[Annotator "ChessBase"]
[PlyCount "39"]
[EventDate "2018.07.06"]
[EventType "swiss"]
[EventCountry "SRB"]
[SourceTitle "playchess.com"]
[Source "ChessBase"]
[SourceQuality "1"]
[TimeControl "5400+30"]

1. d4 {[%emt 0:00:00]} Nf6 {[%emt 0:00:00]} 2. Nf3 {[%emt 0:00:00]} e6 {[%emt 0:00:00]} 3. c4 {[%emt 0:00:00]} b6 {[%emt 0:00:00]} 4. g3 {[%emt 0:00:11]} Ba6 {[%emt 0:00:10]} 5. Qc2 {[%emt 0:00:13]} Bb7 {[%emt 0:01:44]} 6. Bg2 {[%emt 0:00:12]} c5 {[%emt 0:00:34]} 7. d5 {[%emt 0:00:11]} exd5 {[%emt 0:00:30]} 8. cxd5 {[%emt 0:00:10]} Nxd5 {[%emt 0:00:22]} 9. O-O {[%emt 0:00:14]} Be7 {[%emt 0:01:24]} 10. Rd1 {[%emt 0:01:10]} Qc8 {[%emt 0:04:36]} 11. Qf5 {[%emt 0:14:09]} Nf6 {[%emt 0:08:27]} 12. Nc3 {[%emt 0:00:39]} O-O {[%emt 0:03:07]} 13. e4 {[%emt 0:00:34]} d6 {[%emt 0:04:12]} 14. Qxc8 {[%emt 0:02:52]} Rxc8 {[%emt 0:01:53]} 15. Nh4 {[%emt 0:00:35]} Ne8 {[%emt 0:02:10]} 16. Nf5 {[%emt 0:00:27]} Bf8 {[%emt 0:01:21]} 17. Bf4 {[%emt 0:01:14]} Nc6 {[%emt 0:08:38]} 18. Nb5 {[%emt 0:03:38]} Ne5 {[%emt 0:03:00]} 19. Nbxd6 {[%emt 0:08:20]} Nxd6 {[%emt 0:01:36]} 20. Bxe5 {[%emt 0:00:09]} 1/2-1/2

[Event "XI Paracin Festival 2018"]
[Site "Paracin"]
[Date "2018.07.07"]
[Round "3"]
[White "Asadli, Vugar"]
[Black "Tomic, Aleksandar"]
[Result "1-0"]
[ECO "A05"]
[WhiteElo "2478"]
[BlackElo "2347"]
[Annotator "ChessBase"]
[PlyCount "63"]
[EventDate "2018.07.06"]
[EventType "swiss"]
[EventCountry "SRB"]
[SourceTitle "playchess.com"]
[Source "ChessBase"]
[SourceQuality "1"]
[TimeControl "5400+30"]

1. Nf3 {[%emt 0:00:00]} Nf6 {[%emt 0:00:40]} 2. g3 {[%emt 0:00:13]} b6 {[%emt 0:00:35]} 3. Bg2 {[%emt 0:00:05]} Bb7 {[%emt 0:00:13]} 4. O-O {[%emt 0:00:05]} e6 {[%emt 0:02:35]} 5. c4 {[%emt 0:00:57]} Be7 {[%emt 0:02:11]} 6. b3 {[%emt 0:00:54]} O-O {[%emt 0:00:31]} 7. Bb2 {[%emt 0:00:06]} c5 {[%emt 0:00:37]} 8. e3 {[%emt 0:00:22]} d5 {[%emt 0:06:08]} 9. Nc3 {[%emt 0:00:19]} Nc6 {[%emt 0:03:09]} 10. d3 {[%emt 0:00:51]} Qc7 {[%emt 0:03:52]} 11. Qe2 {[%emt 0:00:27]} Rac8 {[%emt 0:02:49]} 12. Nh4 {[%emt 0:10:12]} dxc4 {[%emt 0:07:37]} 13. bxc4 {[%emt 0:00:18]} Rfd8 {[%emt 0:01:31]} 14. f4 {[%emt 0:00:57]} Nb4 {[%emt 0:06:50]} 15. Rad1 {[%emt 0:00:20]} Bxg2 {[%emt 0:07:13]} 16. Nxg2 {[%emt 0:01:26]} a6 {[%emt 0:07:31]} 17. a3 {[%emt 0:02:51]} Nc6 {[%emt 0:00:53]} 18. g4 {[%emt 0:00:17]} Rb8 {[%emt 0:13:43]} 19. a4 {[%emt 0:00:10]} Nb4 {[%emt 0:05:34]} 20. h4 {[%emt 0:02:54]} Rd7 {[%emt 0:05:18]} 21. g5 {[%emt 0:04:48]} Ne8 {[%emt 0:00:32]} 22. Ne1 {[%emt 0:00:28]} Rbd8 {[%emt 0:04:07]} 23. Rf2 {[%emt 0:00:06]} Nd6 {[%emt 0:04:17]} 24. Nf3 {[%emt 0:03:23]} f6 {[%emt 0:03:26]} 25. Rg2 {[%emt 0:01:14]} Nf5 {[%emt 0:02:25]} 26. Ne4 {[%emt 0:16:58]} Nxd3 {[%emt 0:04:36]} 27. Rxd3 {[%emt 0:00:47]} Rxd3 {[%emt 0:00:14]} 28. gxf6 {[%emt 0:00:40]} Bf8 {[%emt 0:02:45]} 29. Ne5 {[%emt 0:05:24]} Rxe3 {[%emt 0:00:44]} 30. Qh5 {[%emt 0:01:34]} Rd7 {[%emt 0:01:45]} 31. fxg7 {[%emt 0:01:00]} Rxg7 {[%emt 0:00:37]} 32. Nf6+ {[%emt 0:00:07]} 1-0

[Event "XI Paracin Festival 2018"]
[Site "Paracin"]
[Date "2018.07.07"]
[Round "3"]
[White "Milanovic, Danilo"]
[Black "Jocev, Milan"]
[Result "1-0"]
[ECO "D00"]
[WhiteElo "2471"]
[BlackElo "2256"]
[Annotator "ChessBase"]
[PlyCount "93"]
[EventDate "2018.07.06"]
[EventType "swiss"]
[EventCountry "SRB"]
[SourceTitle "playchess.com"]
[Source "ChessBase"]
[SourceQuality "1"]
[TimeControl "5400+30"]

1. d4 {[%emt 0:07:39]} d5 {[%emt 0:00:00]} 2. Bf4 {[%emt 0:01:14]} Nf6 {[%emt 0:00:17]} 3. e3 {[%emt 0:00:18]} c5 {[%emt 0:00:19]} 4. c3 {[%emt 0:00:55]} Nc6 {[%emt 0:01:02]} 5. Nd2 {[%emt 0:01:04]} Bf5 {[%emt 0:02:51]} 6. Qb3 {[%emt 0:01:20]} Qc8 {[%emt 0:01:33]} 7. a4 {[%emt 0:01:13]} e6 {[%emt 0:03:07]} 8. h3 Be7 {[%emt 0:01:31]} 9. Ngf3 {[%emt 0:14:14]} cxd4 {[%emt 0:01:16]} 10. exd4 {[%emt 0:00:22]} O-O {[%emt 0:00:57]} 11. Be2 {[%emt 0:01:24]} Ne4 {[%emt 0:06:11]} 12. O-O {[%emt 0:03:08]} Bd6 {[%emt 0:07:44]} 13. Bxd6 {[%emt 0:10:51]} Nxd6 {[%emt 0:00:10]} 14. Nh4 {[%emt 0:03:02]} Qc7 {[%emt 0:14:12]} 15. Nxf5 {[%emt 0:02:29]} Nxf5 {[%emt 0:00:07]} 16. Bd3 {[%emt 0:00:08]} Qf4 {[%emt 0:07:27]} 17. Rad1 {[%emt 0:09:57]} b6 {[%emt 0:11:07]} 18. Qc2 {[%emt 0:04:17]} Nce7 {[%emt 0:00:17]} 19. Nf3 {[%emt 0:01:15]} Rac8 {[%emt 0:00:54]} 20. Rde1 {[%emt 0:04:39]} h6 {[%emt 0:03:25]} 21. Qe2 {[%emt 0:01:11]} Ng6 22. Bc2 {[%emt 0:18:27]} Nfh4 {[%emt 0:22:19]} 23. Nxh4 {[%emt 0:00:33]} Nxh4 {[%emt 0:00:06]} 24. Qd3 {[%emt 0:00:13]} g6 {[%emt 0:01:23]} 25. Re5 {[%emt 0:01:53]} Qf6 {[%emt 0:04:02]} 26. Qe3 {[%emt 0:06:38]} Kg7 {[%emt 0:03:11]} 27. f4 {[%emt 0:01:02]} h5 {[%emt 0:05:14]} 28. g4 {[%emt 0:01:26]} hxg4 {[%emt 0:00:08]} 29. hxg4 {[%emt 0:00:04]} Rh8 {[%emt 0:00:46]} 30. Qg3 {[%emt 0:02:00]} Rcg8 {[%emt 0:00:37]} 31. Kf2 {[%emt 0:01:22]} Qe7 {[%emt 0:00:38]} 32. Ke1 {[%emt 0:00:51]} f6 {[%emt 0:01:02]} 33. Re2 {[%emt 0:00:44]} Qd6 {[%emt 0:00:20]} 34. Qe3 {[%emt 0:00:32]} Re8 {[%emt 0:00:31]} 35. Kd1 {[%emt 0:00:08]} a5 {[%emt 0:00:52]} 36. Bd3 {[%emt 0:00:42]} Re7 {[%emt 0:00:41]} 37. Qf2 {[%emt 0:00:26]} Kf8 {[%emt 0:00:35]} 38. Bb5 {[%emt 0:00:28]} Reh7 {[%emt 0:00:45]} 39. Rfe1 {[%emt 0:00:16]} Re7 {[%emt 0:00:16]} 40. Kc2 {[%emt 0:00:20]} Kg7 {[%emt 0:01:14]} 41. Rh1 {[%emt 0:00:58]} g5 {[%emt 0:00:14]} 42. fxg5 {[%emt 0:00:23]} fxg5 {[%emt 0:00:07]} 43. Re5 {[%emt 0:00:45]} Ng6 {[%emt 0:01:14]} 44. Rxh8 {[%emt 0:00:23]} Kxh8 {[%emt 0:00:28]} 45. Qf6+ {[%emt 0:00:24]} Rg7 {[%emt 0:00:08]} 46. Rxg5 {[%emt 0:00:42]} Qh2+ {[%emt 0:00:18]} 47. Kb3 {[%emt 0:00:23]} 1-0

[Event "XI Paracin Festival 2018"]
[Site "Paracin"]
[Date "2018.07.07"]
[Round "3"]
[White "Kosic, Dragan"]
[Black "Nestorovic, Dejan"]
[Result "1/2-1/2"]
[ECO "A46"]
[WhiteElo "2463"]
[BlackElo "2341"]
[Annotator "ChessBase"]
[PlyCount "89"]
[EventDate "2018.07.06"]
[EventType "swiss"]
[EventCountry "SRB"]
[SourceTitle "playchess.com"]
[Source "ChessBase"]
[SourceQuality "1"]
[TimeControl "5400+30"]

1. d4 {[%emt 0:00:00]} Nf6 {[%emt 0:00:00]} 2. Nf3 {[%emt 0:00:00]} e6 {[%emt 0:00:00]} 3. Bf4 {[%emt 0:00:30]} c5 {[%emt 0:00:20]} 4. e3 {[%emt 0:00:10]} d5 {[%emt 0:01:15]} 5. Nbd2 {[%emt 0:03:01]} Nc6 {[%emt 0:02:03]} 6. c3 {[%emt 0:00:12]} Bd6 {[%emt 0:00:10]} 7. Bg3 {[%emt 0:00:06]} O-O {[%emt 0:00:52]} 8. Bd3 {[%emt 0:02:06]} b6 {[%emt 0:03:15]} 9. Qe2 {[%emt 0:04:05]} Bb7 {[%emt 0:07:49]} 10. Rd1 {[%emt 0:01:11]} c4 {[%emt 0:17:15]} 11. Bb1 {[%emt 0:04:09]} Ne7 {[%emt 0:00:08]} 12. e4 {[%emt 0:05:06]} dxe4 {[%emt 0:10:42]} 13. Ng5 {[%emt 0:01:50]} b5 {[%emt 0:02:22]} 14. Ndxe4 {[%emt 0:06:30]} Nxe4 {[%emt 0:03:33]} 15. Nxe4 {[%emt 0:01:10]} Bxe4 {[%emt 0:15:00]} 16. Qxe4 {[%emt 0:01:11]} g6 {[%emt 0:00:09]} 17. Bh4 {[%emt 0:06:29]} Qc7 {[%emt 0:00:40]} 18. Bg5 {[%emt 0:00:17]} Nd5 {[%emt 0:00:49]} 19. h4 {[%emt 0:00:30]} Rfe8 {[%emt 0:04:49]} 20. h5 {[%emt 0:00:42]} Bf4 {[%emt 0:01:51]} 21. hxg6 {[%emt 0:11:46]} hxg6 {[%emt 0:10:10]} 22. Bxf4 {[%emt 0:07:10]} Qxf4 {[%emt 0:00:10]} 23. Qe5 {[%emt 0:00:11]} Qf6 {[%emt 0:03:26]} 24. Be4 {[%emt 0:02:08]} Rad8 {[%emt 0:02:01]} 25. Qxf6 {[%emt 0:01:33]} Nxf6 {[%emt 0:00:16]} 26. Bc6 {[%emt 0:00:06]} Re7 {[%emt 0:00:14]} 27. Bxb5 {[%emt 0:00:06]} Rb8 {[%emt 0:00:20]} 28. Bxc4 {[%emt 0:08:04]} Rxb2 {[%emt 0:00:08]} 29. Rd2 {[%emt 0:06:25]} Rb1+ {[%emt 0:00:23]} 30. Rd1 {[%emt 0:00:07]} Rb2 {[%emt 0:00:16]} 31. Rh3 {[%emt 0:09:38]} Rc7 {[%emt 0:02:25]} 32. Bb3 {[%emt 0:00:15]} Ne4 {[%emt 0:00:16]} 33. Re3 {[%emt 0:00:13]} Nxc3 {[%emt 0:01:18]} 34. Rc1 {[%emt 0:00:30]} Nd5 {[%emt 0:00:13]} 35. Rxc7 {[%emt 0:00:25]} Nxc7 {[%emt 0:00:01]} 36. Rc3 {[%emt 0:00:22]} Nd5 {[%emt 0:02:20]} 37. Bxd5 {[%emt 0:03:17]} exd5 {[%emt 0:00:04]} 38. Ra3 {[%emt 0:00:07]} Rb4 {[%emt 0:00:08]} 39. Rxa7 {[%emt 0:01:27]} Rxd4 {[%emt 0:00:03]} 40. a4 {[%emt 0:02:03]} Rb4 {[%emt 0:00:16]} 41. a5 {[%emt 0:04:05]} Ra4 {[%emt 0:00:38]} 42. a6 {[%emt 0:00:16]} Kg7 {[%emt 0:00:28]} 43. Ra8 {[%emt 0:03:01]} Ra2 {[%emt 0:00:17]} 44. a7 {[%emt 0:00:31]} d4 {[%emt 0:00:09]} 45. Rd8 {[%emt 0:00:24]} 1/2-1/2